bitfinex-derivatives/quotes_BTCF0:USTF0_20260207
["timestamp","ask_amount","ask_price","bid_price","bid_amount"]
[1770422400683,0.56236609,70582.0,70549.0,0.21213897]
[1770422400886,0.56236609,70581.0,70543.0,0.21216395]
[1770422401081,0.56236609,70580.0,70543.0,0.21216395]
[1770422401279,0.56236609,70579.0,70543.0,0.21216395]
[1770422401479,0.56236609,70578.0,70543.0,0.21216395]
[1770422401679,0.56236609,70577.0,70543.0,0.54187598]
[1770422401990,0.56236609,70576.0,70545.0,0.21216395]
[1770422402190,0.56236609,70575.0,70546.0,0.54187598]
[1770422402394,0.56236609,70574.0,70548.0,0.54187598]
[1770422402590,0.56236609,70573.0,70548.0,0.54187598]
[1770422402790,0.56236609,70572.0,70548.0,0.54187598]
[1770422402990,0.17,70572.0,70548.0,0.54187598]
[1770422403295,0.17,70572.0,70561.0,0.28288527]
[1770422403494,0.17,70572.0,70564.0,0.28288527]
[1770422403694,0.17,70572.0,70560.0,0.28288527]
[1770422403992,0.69613803,70690.0,70572.0,0.54187598]
[1770422403993,0.56236609,70634.0,70572.0,0.54187598]
[1770422404183,0.56236609,70634.0,70593.0,0.11314405]
[1770422404184,0.62236609,70634.0,70593.0,0.11314405]
[1770422404388,0.65236609,70634.0,70586.0,0.16971607]
[1770422404588,0.65236609,70634.0,70588.0,0.014177]
[1770422404883,0.65236609,70634.0,70602.0,0.014174]
[1770422405088,0.65236609,70634.0,70581.0,0.014179]
[1770422405294,0.56236609,70632.0,70596.0,0.014176]
[1770422405497,0.66236609,70632.0,70596.0,0.014176]
[1770422405684,0.2353,70631.0,70575.0,0.16971607]
[1770422405891,0.2353,70625.0,70616.0,0.014171]
[1770422406093,2.3e-07,70622.0,70613.0,0.014172]
[1770422406297,0.33530023,70622.0,70614.0,0.014172]
[1770422406602,3e-08,70622.0,70575.0,0.21266418]
[1770422406794,3e-08,70622.0,70577.0,0.014179]
[1770422406992,0.07,70622.0,70609.0,0.014173]
[1770422407192,0.07,70622.0,70609.0,0.00658465]
[1770422407392,0.072,70622.0,70579.0,0.2353]
[1770422407702,0.66488826,70633.0,70620.0,0.014171]
[1770422407998,0.70488826,70633.0,70599.0,0.014175]
[1770422408194,0.1120749,70621.0,70612.0,0.014172]
[1770422408398,0.1120749,70620.0,70612.0,0.014172]
[1770422408587,0.1120749,70619.0,70582.0,0.014178]
[1770422408788,0.1120749,70618.0,70582.0,0.014178]
[1770422408986,0.1120749,70617.0,70582.0,0.014178]
[1770422409193,0.1120749,70616.0,70609.0,0.014173]
[1770422409391,0.24,70616.0,70609.0,0.014173]
[1770422409687,0.24,70616.0,70603.0,0.014174]
[1770422409890,0.24,70616.0,70579.0,0.070897]
[1770422410089,0.02731387,70616.0,70599.0,0.014175]
[1770422410301,0.01,70616.0,70600.0,0.21266418]
[1770422410600,0.01,70616.0,70573.0,0.01418]
[1770422410601,0.01,70616.0,70592.0,0.014176]
[1770422410805,0.01,70616.0,70594.0,0.014176]
[1770422411008,0.011,70616.0,70610.0,0.1635233]
[1770422411799,0.011,70616.0,70596.0,0.70707926]
[1770422412001,0.011,70616.0,70545.0,0.014186]
[1770422412200,0.011,70616.0,70588.0,0.014177]
[1770422412600,0.011,70616.0,70609.0,0.42396593]
[1770422413101,0.011,70616.0,70606.0,0.42396593]
[1770422413504,0.011,70616.0,70579.0,0.014179]
[1770422413695,0.012,70616.0,70579.0,0.014179]
[1770422414004,0.056172,70616.0,70615.0,2.4e-07]
[1770422414211,0.186172,70616.0,70574.0,0.01418]
[1770422414397,0.014172,70614.0,70574.0,0.01418]
[1770422414698,0.26,70614.0,70576.0,0.01418]
[1770422415910,0.014172,70613.0,70573.0,0.01418]
[1770422416112,0.274172,70613.0,70573.0,0.01418]
[1770422416304,0.04,70613.0,70573.0,0.01418]
[1770422416504,0.224172,70613.0,70573.0,0.01418]
[1770422416899,0.224172,70613.0,70575.0,0.84678392]
[1770422417110,0.224172,70613.0,70612.0,9.5e-07]
[1770422417309,0.014174,70605.0,70575.0,0.84678392]
[1770422417504,0.274174,70605.0,70575.0,0.84678392]
[1770422417912,0.274174,70605.0,70585.0,0.56421162]
[1770422418213,0.03,70605.0,70585.0,0.56421162]
[1770422418404,0.17,70605.0,70585.0,0.56421162]
[1770422418806,0.17,70605.0,70583.0,0.56421162]
[1770422419210,0.171,70605.0,70583.0,0.56421162]
[1770422419406,0.014175,70602.0,70583.0,0.56121162]
[1770422419606,0.014177,70592.0,70560.0,0.84659215]
[1770422419811,0.014178,70586.0,70560.0,0.84659215]
[1770422420011,0.014179,70578.0,70560.0,0.84359215]
[1770422420316,0.01418,70575.0,70560.0,0.84359215]
[1770422420515,0.27418,70575.0,70560.0,0.84359215]
[1770422420719,0.27418,70575.0,70536.0,0.0002]
[1770422420915,0.27418,70575.0,70528.0,0.014189]
[1770422421218,0.014181,70572.0,70528.0,0.014189]
[1770422421416,0.284181,70572.0,70528.0,0.014189]
[1770422421716,0.284181,70572.0,70531.0,0.014189]
[1770422421920,0.014185,70548.0,70512.0,0.73463097]
[1770422422108,0.27,70548.0,70512.0,0.73463097]
[1770422422312,0.284185,70548.0,70512.0,0.7344392]
[1770422422512,0.284185,70548.0,70494.0,0.0002]
[1770422422513,0.014186,70545.0,70508.0,0.42191887]
[1770422422811,0.014187,70542.0,70508.0,0.42191887]
[1770422423009,0.014187,70540.0,70525.0,0.0002]
[1770422423211,0.25,70540.0,70525.0,0.0002]
[1770422423611,0.25,70540.0,70499.0,0.42191887]
[1770422423820,0.25,70540.0,70495.0,0.42191887]
[1770422424021,0.014189,70533.0,70495.0,0.42191887]
[1770422424215,0.014191,70520.0,70492.0,0.41891887]
[1770422424415,0.26,70520.0,70492.0,0.40176787]
[1770422424618,0.26,70520.0,70480.0,0.0002]
[1770422424619,0.00013875,70519.0,70485.0,0.014198]
[1770422424918,0.00015041,70518.0,70485.0,0.014198]
[1770422425114,0.25,70518.0,70476.0,0.0002]
[1770422425318,0.2353,70517.0,70476.0,0.0002]
[1770422425509,0.5153,70517.0,70477.0,0.014199]
[1770422426120,0.5153,70517.0,70476.0,0.0002]
[1770422426421,0.5153,70517.0,70476.0,0.0142]
[1770422426624,0.5153,70517.0,70479.0,0.014199]
[1770422426809,0.0001122,70516.0,70479.0,0.014199]
[1770422427014,0.2353,70515.0,70479.0,0.014199]
[1770422427221,0.4853,70515.0,70472.0,0.00011894]
[1770422427417,0.4853,70515.0,70474.0,1.51335138]
[1770422427920,0.4853,70515.0,70474.0,1.52755138]
[1770422428225,0.2353,70510.0,70472.0,0.00011894]
[1770422428410,0.2353,70506.0,70472.0,0.00011894]
[1770422428611,0.4953,70506.0,70472.0,0.00011894]
[1770422430217,0.014194,70504.0,70472.0,0.00011894]
[1770422430417,0.2353,70503.0,70472.0,0.00011894]
[1770422430628,0.00011475,70502.0,70472.0,0.00011894]
[1770422430818,0.2353,70497.0,70472.0,0.00011894]
[1770422431018,0.4853,70497.0,70473.0,0.0142]
[1770422431422,0.499496,70497.0,70472.0,0.00011894]
[1770422431727,0.00015267,70496.0,70472.0,0.00011894]
[1770422432026,0.2353,70495.0,70473.0,0.0142]
[1770422432325,0.2353,70495.0,70472.0,0.01431894]
[1770422432326,0.4653,70495.0,70472.0,0.01431894]
[1770422432518,0.00015357,70494.0,70472.0,0.01431894]
[1770422432713,0.2353,70493.0,70472.0,0.01431894]
[1770422432918,0.5053,70493.0,70472.0,0.01431894]
[1770422433124,0.014199,70481.0,70448.0,0.014205]
[1770422433328,0.2353,70478.0,70452.0,0.014205]
[1770422433528,0.5053,70478.0,70457.0,0.014204]
[1770422433723,0.5053,70478.0,70431.0,1.51335138]
[1770422433724,0.0142,70477.0,70434.0,0.0002]
[1770422433928,0.2353,70474.0,70443.0,0.014206]
[1770422434127,0.2353,70472.0,70443.0,0.014206]
[1770422434428,0.4953,70472.0,70438.0,0.014207]
[1770422434618,0.4953,70472.0,70250.0,56.9395]
[1770422434817,1.8e-07,70413.0,70390.0,0.0002]
[1770422435027,0.2353,70412.0,70343.0,0.0002]
[1770422435224,0.2353,70412.0,70344.0,0.0002]
[1770422435225,0.2353,70376.0,70344.0,0.0002]
[1770422435525,0.07,70391.0,70351.0,0.58333333]
[1770422435717,0.0626,70445.0,70416.0,0.014212]
[1770422435920,0.01,70445.0,70417.0,1.11659138]
[1770422436120,0.11,70460.0,70439.0,0.014207]
[1770422436320,0.11,70460.0,70419.0,0.014211]
[1770422436321,0.16,70460.0,70419.0,0.014211]
[1770422436520,0.16,70460.0,70424.0,0.01421]
[1770422437024,0.014203,70459.0,70424.0,0.01121]
[1770422437225,0.284203,70459.0,70424.0,0.01121]
[1770422437425,0.284203,70459.0,70428.0,0.014209]
[1770422437621,0.00011127,70458.0,70428.0,0.014209]
[1770422437821,0.00015804,70457.0,70429.0,1.11659138]
[1770422438028,0.00011538,70456.0,70432.0,0.014209]
[1770422438227,0.26,70456.0,70432.0,0.014209]
[1770422438920,0.00013928,70455.0,70375.0,0.58333333]
[1770422439125,0.014208,70436.0,70393.0,0.0002]
[1770422439431,0.28,70436.0,70404.0,0.014214]
[1770422439831,0.28,70436.0,70368.0,0.014221]
[1770422439832,0.014217,70392.0,70374.0,0.0002]
[1770422440030,0.014217,70391.0,70374.0,0.0002]
[1770422440226,0.014217,70391.0,70329.0,0.0283238]
[1770422440227,0.23,70391.0,70351.0,0.0002]
[1770422440425,0.23,70391.0,70339.0,0.014227]
[1770422440625,0.23,70391.0,70335.0,0.0002]
[1770422440626,0.23,70391.0,70335.0,0.58353333]
[1770422440937,0.014225,70352.0,70329.0,0.0112948]
[1770422441123,0.23,70352.0,70329.0,0.0112948]
[1770422441422,0.23,70352.0,70315.0,0.0002]
[1770422441629,0.23,70352.0,70321.0,0.014231]
[1770422441824,0.23,70352.0,70309.0,0.0002]
[1770422442024,0.23,70352.0,70328.0,0.01423]
[1770422442334,0.23,70352.0,70309.0,0.0002]
[1770422442535,0.00013707,70351.0,70320.0,0.071158]
[1770422442731,0.00013707,70351.0,70337.0,0.014228]
[1770422442732,0.28,70351.0,70337.0,0.014228]
[1770422443032,0.28,70351.0,70320.0,0.014231]
[1770422443330,0.00017159,70350.0,70306.0,0.014234]
[1770422443530,0.00016969,70349.0,70314.0,0.014232]
[1770422443723,0.28,70349.0,70328.0,0.0002]
[1770422444329,0.28,70349.0,70286.0,0.071193]
[1770422444629,0.28,70349.0,70311.0,0.0002]
[1770422444833,0.28,70349.0,70321.0,0.014231]
[1770422445134,0.28,70349.0,70328.0,0.01423]
[1770422445328,0.28,70349.0,70326.0,0.01423]
[1770422445635,0.01,70349.0,70317.0,0.071162]
[1770422445827,0.08,70349.0,70344.0,0.014226]
[1770422446032,0.06264,70363.0,70345.0,0.014226]
[1770422446229,0.00013829,70362.0,70334.0,0.014228]
[1770422446429,0.00013829,70362.0,70330.0,0.071148]
[1770422446430,0.03,70362.0,70330.0,0.071148]
[1770422446633,0.08,70362.0,70331.0,0.0002]
[1770422446834,0.08,70362.0,70345.0,0.014226]
[1770422447140,0.22,70362.0,70353.0,0.014224]
[1770422447330,0.06,70377.0,70353.0,0.014224]
[1770422447536,0.07,70377.0,70353.0,0.0002]
[1770422447840,0.02,70377.0,70353.0,0.0002]
[1770422448028,0.06268,70393.0,70370.0,0.014221]
[1770422448029,0.00014294,70376.0,70370.0,0.014221]
[1770422448229,0.06268,70393.0,70371.0,0.014221]
[1770422448230,0.00013773,70375.0,70371.0,0.014221]
[1770422448442,7.4e-07,70375.0,70371.0,0.014221]
[1770422448935,0.01000074,70375.0,70359.0,0.014223]
[1770422449333,0.07,70390.0,70381.0,0.014219]
[1770422449532,0.014209,70430.0,70395.0,0.014216]
[1770422449837,0.05,70430.0,70404.0,0.014214]
[1770422450027,0.05,70430.0,70393.0,0.014216]
[1770422450232,0.01421,70424.0,70392.0,0.014217]
[1770422450427,0.07,70424.0,70400.0,0.14131968]
[1770422450640,0.07,70424.0,70402.0,0.014215]
[1770422450828,0.07,70424.0,70400.0,0.14131968]
[1770422451033,0.00012133,70423.0,70406.0,0.014214]
[1770422451338,0.00012133,70423.0,70400.0,0.14131968]
[1770422451339,0.07,70423.0,70400.0,0.14131968]
[1770422451838,0.07,70423.0,70381.0,0.014219]
[1770422452038,0.014212,70415.0,70384.0,0.014218]
[1770422452237,0.094212,70415.0,70384.0,0.014218]
[1770422452429,0.294212,70415.0,70380.0,0.14131968]
[1770422452632,0.294212,70415.0,70381.0,0.014219]
[1770422452833,0.294212,70415.0,70385.0,0.014218]
[1770422453041,0.014213,70411.0,70380.0,0.15553868]
[1770422453234,0.24,70411.0,70380.0,0.14131968]
[1770422453443,0.00013031,70410.0,70392.0,0.014217]
[1770422453637,0.00012978,70409.0,70387.0,0.014218]
[1770422453940,0.23012978,70409.0,70398.0,0.014215]
[1770422454136,7.8e-07,70409.0,70399.0,0.14131968]
[1770422454436,0.04,70409.0,70400.0,0.014215]
[1770422454633,0.07,70409.0,70400.0,0.014215]
[1770422454829,0.07,70409.0,70399.0,0.14131968]
[1770422455034,0.1,70424.0,70404.0,0.014214]
[1770422455230,0.08,70439.0,70399.0,0.14131968]
[1770422455538,0.03,70439.0,70416.0,0.014212]
[1770422455940,0.19,70439.0,70416.0,0.014212]
[1770422456635,0.19,70439.0,70429.0,0.14131968]
[1770422456938,0.08,70439.0,70429.0,0.14131968]
[1770422457142,0.03,70439.0,70429.0,0.14131968]
[1770422457334,0.03,70439.0,70429.0,0.10852316]
[1770422457535,0.03,70439.0,70401.0,0.58333333]
[1770422457536,0.03,70439.0,70420.0,0.14125438]
[1770422457842,0.11,70454.0,70420.0,0.14125438]
[1770422458035,0.16272,70446.0,70426.0,0.01421]
[1770422458432,0.1,70446.0,70425.0,0.01421]
[1770422458744,0.1,70446.0,70428.0,0.014209]
[1770422459238,0.1,70446.0,70382.0,0.071096]
[1770422459442,0.01421,70428.0,70397.0,0.014216]
[1770422459735,0.01421,70428.0,70370.0,0.014221]
[1770422459736,0.26,70428.0,70331.0,0.014229]
[1770422459930,0.014213,70409.0,70375.0,0.01422]
[1770422460132,0.28,70409.0,70395.0,0.014216]
[1770422460337,0.12,70424.0,70407.0,0.014214]
[1770422460541,0.23,70424.0,70400.0,0.014215]
[1770422460742,0.23,70424.0,70410.0,0.14125438]
[1770422461138,0.23,70424.0,70410.0,0.15546738]
[1770422461338,0.23,70424.0,70410.0,0.14125438]
[1770422461541,0.23,70424.0,70411.0,0.014213]
[1770422461740,0.23,70424.0,70410.0,0.14125438]
[1770422461944,0.097,70439.0,70410.0,0.14125438]
[1770422462144,0.08,70439.0,70429.0,0.14125438]
[1770422462537,0.08,70439.0,70410.0,0.14125438]
[1770422462938,0.08,70439.0,70414.0,0.014212]
[1770422463245,0.08184,70439.0,70414.0,0.014212]
[1770422463946,0.25184,70439.0,70414.0,0.014212]
[1770422464544,0.014208,70437.0,70410.0,0.14125438]
[1770422464746,0.25184,70437.0,70411.0,0.014213]
[1770422465046,0.25184,70437.0,70410.0,0.14125438]
[1770422465442,0.014209,70432.0,70410.0,0.14125438]
[1770422465642,0.014209,70430.0,70410.0,0.14125438]
[1770422465950,0.24184,70430.0,70410.0,0.14125438]
[1770422466454,0.24184,70430.0,70390.0,0.14125438]
[1770422466639,0.014212,70419.0,70390.0,0.14125438]
[1770422466846,0.014212,70416.0,70390.0,0.14125438]
[1770422467045,0.266052,70416.0,70390.0,0.14125438]
[1770422467851,0.014213,70413.0,70390.0,0.14125438]
[1770422468053,0.276053,70413.0,70390.0,0.14125438]
[1770422468255,0.276053,70413.0,70383.0,0.014219]
[1770422468551,0.26184,70413.0,70380.0,0.14125438]
[1770422468953,0.26184,70413.0,70388.0,0.014217]
[1770422469156,0.26184,70413.0,70384.0,0.014218]
[1770422469454,0.26184,70413.0,70391.0,0.014217]
[1770422469654,0.26184,70413.0,70387.0,0.014218]
[1770422470152,0.26184,70413.0,70400.0,0.14125438]
[1770422471148,0.26184,70413.0,70401.0,0.014215]
[1770422471351,0.26184,70413.0,70400.0,0.15546938]
[1770422471657,0.26184,70413.0,70400.0,0.15554709]
[1770422471857,0.26184,70413.0,70400.0,0.14133209]
[1770422472155,0.107,70428.0,70402.0,0.014215]
[1770422472352,0.107,70428.0,70392.0,0.4191106]
[1770422472353,0.07,70428.0,70392.0,0.4191106]
[1770422472556,0.014214,70404.0,70380.0,0.14133209]
[1770422472755,0.014215,70401.0,70380.0,0.14133209]
[1770422472955,0.07,70401.0,70380.0,0.14133209]
[1770422473152,0.07,70401.0,70378.0,0.00011453]
[1770422473353,0.014218,70384.0,70360.0,0.14133209]
[1770422473553,0.25,70384.0,70340.0,0.14133209]
[1770422473756,0.25,70384.0,70365.0,0.014222]
[1770422473956,0.25,70384.0,70360.0,0.14133209]
[1770422474161,0.014222,70366.0,70345.0,0.4173106]
[1770422474355,0.274222,70366.0,70340.0,0.14133209]
[1770422474658,0.26,70366.0,70320.0,0.14133209]
[1770422474955,0.26,70366.0,70315.0,0.55714129]
[1770422474956,0.26,70366.0,70340.0,0.14133209]
[1770422475159,0.014222,70365.0,70340.0,0.14133209]
[1770422475361,0.014224,70356.0,70325.0,0.01423]
[1770422475563,0.24,70356.0,70329.0,0.014229]
[1770422475859,0.24,70356.0,70340.0,0.14133209]
[1770422476664,0.2261212,70356.0,70340.0,0.14133209]
[1770422477560,0.2261212,70356.0,70330.0,0.014229]
[1770422477762,0.014225,70352.0,70322.0,0.014231]
[1770422477957,0.2561212,70352.0,70325.0,0.01423]
[1770422478367,0.00011506,70351.0,70329.0,0.014229]
[1770422478562,0.00011506,70350.0,70325.0,0.01423]
[1770422478756,0.2586712,70350.0,70325.0,0.01423]
[1770422478961,0.2586712,70350.0,70327.0,0.35128149]
[1770422479157,0.25855667,70350.0,70340.0,0.14133209]
[1770422479364,0.00011506,70349.0,70340.0,0.14133209]
[1770422479567,0.24867173,70349.0,70340.0,0.14133209]
[1770422480664,0.24855667,70349.0,70330.0,0.35128149]
[1770422480968,0.24855667,70349.0,70334.0,0.014228]
[1770422481158,0.00011506,70348.0,70330.0,0.35128149]
[1770422481359,0.00011117,70347.0,70338.0,2.15726628]
[1770422481560,9.971e-05,70346.0,70329.0,0.35128149]
[1770422481760,0.24855667,70346.0,70327.0,0.35128149]
[1770422481966,0.24855667,70346.0,70326.0,0.35128149]
[1770422482367,0.24855667,70346.0,70323.0,0.35128149]
[1770422482571,0.24855667,70346.0,70324.0,0.01423]
[1770422482871,0.24855667,70346.0,70327.0,0.01423]
[1770422483261,0.24855667,70346.0,70334.0,0.35128149]
[1770422483465,0.24855667,70346.0,70325.0,0.58333333]
[1770422483466,0.00010172,70345.0,70339.0,0.35128149]
[1770422483764,0.014219,70382.0,70336.0,0.14133209]
[1770422483765,0.067,70360.0,70340.0,0.35128149]
[1770422483971,0.07,70360.0,70343.0,0.35128149]
[1770422484363,0.07,70360.0,70345.0,0.35128149]
[1770422484964,0.07,70360.0,70350.0,0.14133209]
[1770422485168,0.24,70360.0,70350.0,0.49261358]
[1770422485366,0.24,70360.0,70354.0,0.35128149]
[1770422485572,0.107,70375.0,70358.0,0.014224]
[1770422485771,0.07,70375.0,70360.0,0.35128149]
[1770422486072,0.07,70375.0,70361.0,0.35128149]
[1770422486567,0.07,70375.0,70344.0,0.014226]
[1770422486568,0.07,70375.0,70373.0,0.34996674]
[1770422486762,0.01439168,70402.0,70377.0,0.01422]
[1770422486968,0.07439168,70402.0,70376.0,0.34995114]
[1770422487165,0.01439168,70401.0,70380.0,0.14133209]
[1770422487365,0.07439168,70401.0,70380.0,0.14133209]
[1770422487572,0.01439168,70400.0,70381.0,0.34995114]
[1770422487762,0.01439168,70400.0,70373.0,0.42071396]
[1770422487763,0.014216,70394.0,70373.0,0.42071396]
[1770422487968,0.07,70394.0,70372.0,0.014221]
[1770422488273,0.014219,70381.0,70363.0,0.42071396]
[1770422488468,0.00666534,70380.0,70363.0,0.42071396]
[1770422488674,0.25666534,70380.0,70363.0,0.014223]
[1770422488868,0.25,70380.0,70363.0,0.014223]
[1770422489070,0.02088534,70376.0,70357.0,0.11871396]
[1770422489263,0.24666534,70376.0,70357.0,0.11871396]
[1770422489468,0.02088534,70375.0,70348.0,0.014226]
[1770422489668,0.27088534,70375.0,70348.0,0.014226]
[1770422490072,0.27088534,70375.0,70340.0,0.69847338]
[1770422490073,0.00666534,70374.0,70340.0,0.69847338]
[1770422490375,0.00666534,70374.0,70335.0,0.54627407]
[1770422490376,0.01086722,70353.0,70335.0,0.54627407]
[1770422490569,0.01086722,70353.0,70316.0,0.69819053]
[1770422490570,0.014226,70347.0,70323.0,0.014231]
[1770422490764,0.24074563,70347.0,70327.0,0.01423]
[1770422491080,0.24074563,70347.0,70318.0,0.54627407]
[1770422491372,0.24074563,70347.0,70330.0,0.14133209]
[1770422492370,0.014227,70344.0,70315.0,0.014232]
[1770422492570,0.014227,70344.0,70311.0,0.014233]
[1770422492571,0.25074563,70344.0,70311.0,0.014233]
[1770422492777,0.25074563,70344.0,70310.0,0.14133209]
[1770422493072,0.014228,70337.0,70312.0,0.014233]
[1770422493273,0.26497363,70337.0,70312.0,0.014233]
[1770422493474,0.26497363,70337.0,70309.0,0.57971092]
[1770422493475,0.071147,70332.0,70296.0,0.4392108]
[1770422493675,0.014231,70323.0,70290.0,0.14133209]
[1770422493973,0.24074563,70323.0,70290.0,0.14133209]
[1770422494168,0.24074563,70323.0,70271.0,0.014241]
[1770422494473,0.014236,70299.0,70260.0,0.14133209]
[1770422494672,0.014236,70295.0,70263.0,0.014243]
[1770422494869,0.27074563,70295.0,70272.0,0.014241]
[1770422495179,0.014237,70294.0,70260.0,0.72466542]
[1770422495378,0.014237,70290.0,70260.0,0.14133209]
[1770422495579,0.26074563,70290.0,70261.0,0.014243]
[1770422495766,0.26074563,70290.0,70248.0,0.014246]
[1770422495974,0.014238,70288.0,70243.0,0.0002]
[1770422496177,0.014239,70282.0,70250.0,0.014245]
[1770422496373,0.04608422,70281.0,70254.0,0.014245]
[1770422496575,0.04608422,70280.0,70250.0,0.14133209]
[1770422496774,0.04608422,70280.0,70250.0,0.30469659]
[1770422496775,0.04608422,70273.0,70250.0,0.30469659]
[1770422496975,0.30682985,70273.0,70250.0,0.30469659]
[1770422497273,0.30682985,70273.0,70244.0,0.014247]
[1770422497274,0.00015015,70272.0,70240.0,0.43521359]
[1770422497578,0.25074563,70272.0,70241.0,0.014247]
[1770422497776,0.25074563,70272.0,70240.0,0.42096659]
[1770422497777,0.25074563,70272.0,70255.0,0.014244]
[1770422497976,0.25074563,70272.0,70242.0,0.42096659]
[1770422498372,0.25074563,70272.0,70243.0,0.014247]
[1770422498679,0.25074563,70272.0,70247.0,0.014246]
[1770422499083,0.25074563,70272.0,70246.0,0.014246]
[1770422499289,0.25074563,70272.0,70250.0,0.014245]
[1770422499580,0.25074563,70272.0,70226.0,0.58333333]
[1770422499781,0.25074563,70272.0,70247.0,0.014246]
[1770422500084,0.25074563,70272.0,70241.0,0.58333333]
[1770422500380,0.05,70272.0,70241.0,0.58333333]
[1770422500677,0.05,70272.0,70254.0,0.014245]
[1770422500678,0.01891071,70272.0,70254.0,0.014245]
[1770422500881,0.01891071,70272.0,70258.0,0.014244]
[1770422501081,0.01891071,70272.0,70253.0,0.014245]
[1770422501275,0.01891071,70272.0,70257.0,0.014244]
[1770422501475,0.01891071,70272.0,70262.0,0.014243]
[1770422501680,0.18000071,70272.0,70256.0,0.014244]
[1770422502073,0.18000071,70272.0,70260.0,0.014243]
[1770422502273,0.07000071,70272.0,70255.0,0.014244]
[1770422502473,0.07000071,70272.0,70250.0,0.014245]
[1770422502677,0.07000071,70272.0,70254.0,0.014245]
[1770422502878,0.07000071,70272.0,70258.0,0.014244]
[1770422503284,0.02000071,70272.0,70260.0,0.14133209]
[1770422503585,0.11,70287.0,70265.0,0.014242]
[1770422503784,0.05,70287.0,70260.0,0.15557509]
[1770422504083,0.05,70287.0,70264.0,0.014243]
[1770422504385,0.05,70287.0,70261.0,0.014243]
[1770422504785,0.23,70287.0,70261.0,0.014243]
[1770422505784,0.04807044,70272.0,70246.0,0.42096659]
[1770422505977,0.04807044,70266.0,70230.0,0.56730985]
[1770422506286,0.04807044,70265.0,70240.0,0.014247]
[1770422506475,0.30807044,70265.0,70240.0,0.014247]
[1770422507084,0.26,70265.0,70238.0,0.014248]
[1770422507386,0.26,70265.0,70241.0,0.014247]
[1770422508380,0.10919375,70264.0,70242.0,0.2357]
[1770422508585,0.10919375,70264.0,70231.0,0.2357]
[1770422508586,0.10919375,70255.0,70231.0,0.2357]
[1770422508790,0.10919375,70254.0,70231.0,0.2357]
[1770422509089,0.10919375,70253.0,70231.0,0.2357]
[1770422509388,0.36919375,70253.0,70228.0,0.01437007]
[1770422509586,0.36919375,70253.0,70228.0,0.43533666]
[1770422509781,0.10919375,70252.0,70228.0,0.43533666]
[1770422509981,0.10919375,70251.0,70228.0,0.01437007]
[1770422510283,0.33919375,70251.0,70228.0,0.01437007]
[1770422510479,0.08695072,70250.0,70228.0,0.00012007]
[1770422510788,0.34695072,70250.0,70228.0,0.00012007]
[1770422511177,0.34695072,70250.0,70228.0,0.42108666]
[1770422511382,0.34695072,70250.0,70231.0,0.014249]
[1770422511678,0.34695072,70250.0,70232.0,0.014249]
[1770422512087,0.26,70250.0,70232.0,0.014249]
[1770422512789,0.26,70250.0,70235.0,0.014248]
[1770422512988,0.26,70250.0,70231.0,0.014249]
[1770422513285,0.26,70250.0,70238.0,0.014248]
[1770422513490,0.05,70250.0,70238.0,0.014248]
[1770422513690,0.05,70250.0,70234.0,1.19543754]
[1770422513890,0.07,70250.0,70236.0,0.2357]
[1770422514190,0.04,70250.0,70240.0,0.014247]
[1770422514780,0.1,70265.0,70243.0,0.014247]
[1770422514980,0.1,70265.0,70235.0,0.95973754]
[1770422514981,0.06997157,70264.0,70242.0,0.53877095]
[1770422515286,0.06997157,70264.0,70246.0,0.42096659]
[1770422515287,0.72957787,70264.0,70246.0,0.42096659]
[1770422515686,0.72957787,70264.0,70241.0,0.014247]
[1770422516390,0.72957787,70264.0,70244.0,0.014247]
[1770422516786,0.72957787,70264.0,70239.0,0.42096659]
[1770422517089,0.31997157,70264.0,70250.0,0.014245]
[1770422517286,0.03,70264.0,70247.0,0.2357]
[1770422517491,0.04073549,70264.0,70254.0,0.014245]
[1770422517684,0.07,70264.0,70256.0,0.014244]
[1770422517885,0.0628,70275.0,70263.0,0.014243]
[1770422518190,0.06997157,70274.0,70260.0,0.42096659]
[1770422518391,0.06997157,70274.0,70256.0,0.014244]
[1770422518392,0.14997157,70274.0,70262.0,0.42096659]
[1770422518783,0.32997157,70274.0,70263.0,0.43466479]
[1770422518988,0.32997157,70274.0,70263.0,5.9e-07]
[1770422519192,0.32997157,70274.0,70252.0,0.56055652]
[1770422519392,0.34421257,70274.0,70252.0,0.56055652]
[1770422519589,0.34421257,70274.0,70250.0,0.14133209]
[1770422519792,0.014241,70271.0,70246.0,0.53877095]
[1770422520092,0.24,70271.0,70246.0,0.53877095]
[1770422520291,0.06997157,70270.0,70247.0,0.014246]
[1770422520492,0.31997157,70270.0,70248.0,0.56055652]
[1770422521391,0.23147095,70270.0,70256.0,0.56055652]
[1770422521590,0.1,70285.0,70264.0,0.014243]
[1770422521895,0.01424,70277.0,70256.0,0.56055652]
[1770422522090,0.01424,70277.0,70264.0,0.56055652]
[1770422522091,0.01,70277.0,70264.0,0.56055652]
[1770422522295,0.06997157,70276.0,70264.0,0.56055652]
[1770422522497,0.13997157,70276.0,70264.0,0.56055652]
[1770422522889,0.13997157,70276.0,70266.0,0.56055652]
[1770422523090,0.32997157,70276.0,70266.0,0.56055652]
[1770422523292,0.30681411,70276.0,70266.0,0.56055652]
[1770422523494,0.61033601,70291.0,70266.0,0.56055652]
[1770422523495,0.1,70291.0,70277.0,0.01424]
[1770422523789,0.06,70291.0,70279.0,0.014239]
[1770422523983,0.06,70291.0,70275.0,0.77447095]
[1770422524200,0.02,70291.0,70282.0,0.014239]
[1770422524595,0.02,70306.0,70288.0,0.014238]
[1770422524794,0.08,70306.0,70290.0,0.014237]
[1770422524990,0.08,70306.0,70293.0,0.2357]
[1770422525196,0.037,70321.0,70300.0,0.2357]
[1770422525395,0.04,70336.0,70308.0,0.55300495]
[1770422525690,0.04,70336.0,70323.0,0.2357]
[1770422525996,0.01,70351.0,70340.0,0.2357]